[Event "Titled Tuesday Blitz March 21 Early 2023"]
[White "Duda, Jan-Krzysztof"]
[Black "Seo, Jung Min"]
[WhiteFideId "1170546"]
[BlackFideId "1734687"]
[WhiteElo "2790"]
[BlackElo "2468"]
[Result "0-1"]
[Round "07"]
[TimeControl "180+2"]
[Date "2023.03.21"]
[WhiteClock "0:00:01"]
[BlackClock "0:00:05"]

1. d4 {[%clk 0:03:00]}  Nf6 {[%clk 0:02:59]} 2. Bg5 {[%clk 0:03:01]}  d5 {[%clk 0:02:58]} 3. Bxf6 {[%clk 0:03:01]}  exf6 {[%clk 0:02:58]} 4. e3 {[%clk 0:03:00]}  Bd6 {[%clk 0:02:57]} 5. Bd3 {[%clk 0:02:58]}  O-O {[%clk 0:02:45]} 6. Nd2 {[%clk 0:02:54]}  c6 {[%clk 0:02:42]} 7. Qf3 {[%clk 0:02:52]}  Na6 {[%clk 0:02:31]} 8. c3 {[%clk 0:02:48]}  Nc7 {[%clk 0:02:27]} 9. Ne2 {[%clk 0:02:47]}  Re8 {[%clk 0:02:26]} 10. h4 {[%clk 0:02:45]}  Qd7 {[%clk 0:02:23]} 11. h5 {[%clk 0:02:28]}  Qg4 {[%clk 0:02:20]} 12. O-O-O {[%clk 0:02:20]}  Bd7 {[%clk 0:02:03]} 13. Rdg1 {[%clk 0:02:17]}  Re7 {[%clk 0:01:57]} 14. h6 {[%clk 0:02:01]}  Qxf3 {[%clk 0:01:53]} 15. gxf3 {[%clk 0:01:46]}  g6 {[%clk 0:01:53]} 16. Ng3 {[%clk 0:01:42]}  Kf8 {[%clk 0:01:46]} 17. f4 {[%clk 0:01:41]}  f5 {[%clk 0:01:46]} 18. Rg2 {[%clk 0:01:40]}  Ne8 {[%clk 0:01:43]} 19. Nf3 {[%clk 0:01:40]}  Nf6 {[%clk 0:01:38]} 20. Ne5 {[%clk 0:01:40]}  Ne4 {[%clk 0:01:33]} 21. Rhg1 {[%clk 0:01:25]}  Nxg3 {[%clk 0:01:27]} 22. Rxg3 {[%clk 0:01:25]}  Be6 {[%clk 0:01:26]} 23. Kd2 {[%clk 0:01:22]}  Rae8 {[%clk 0:01:25]} 24. Bc2 {[%clk 0:01:08]}  Rc7 {[%clk 0:01:20]} 25. b4 {[%clk 0:01:07]}  Ke7 {[%clk 0:01:20]} 26. a4 {[%clk 0:01:04]}  Rec8 {[%clk 0:01:14]} 27. a5 {[%clk 0:01:02]}  a6 {[%clk 0:01:13]} 28. Nd3 {[%clk 0:00:56]}  Ke8 {[%clk 0:01:11]} 29. Bb3 {[%clk 0:00:56]}  Bf8 {[%clk 0:01:10]} 30. Rh1 {[%clk 0:00:56]}  Ke7 {[%clk 0:01:09]} 31. Ne5 {[%clk 0:00:56]}  Kf6 {[%clk 0:01:06]} 32. Nf3 {[%clk 0:00:56]}  Bd6 {[%clk 0:01:02]} 33. Ng5 {[%clk 0:00:56]}  Rh8 {[%clk 0:01:02]} 34. Kc2 {[%clk 0:00:56]}  Rcc8 {[%clk 0:00:58]} 35. Kb2 {[%clk 0:00:56]}  Ke7 {[%clk 0:00:56]} 36. Bc2 {[%clk 0:00:56]}  f6 {[%clk 0:00:51]} 37. Nf3 {[%clk 0:00:53]}  Kf7 {[%clk 0:00:50]} 38. Rg2 {[%clk 0:00:52]}  Rcg8 {[%clk 0:00:50]} 39. Bd3 {[%clk 0:00:53]}  Ke7 {[%clk 0:00:50]} 40. Kb3 {[%clk 0:00:53]}  Rd8 {[%clk 0:00:46]} 41. Rhg1 {[%clk 0:00:51]}  Kd7 {[%clk 0:00:42]} 42. Nh4 {[%clk 0:00:50]}  Bf8 {[%clk 0:00:41]} 43. Rh1 {[%clk 0:00:43]}  Re8 {[%clk 0:00:38]} 44. Nf3 {[%clk 0:00:41]}  Kc7 {[%clk 0:00:36]} 45. Nd2 {[%clk 0:00:41]}  Rd8 {[%clk 0:00:34]} 46. Nb1 {[%clk 0:00:36]}  Be7 {[%clk 0:00:34]} 47. c4 {[%clk 0:00:33]}  dxc4+ {[%clk 0:00:28]} 48. Bxc4 {[%clk 0:00:34]}  Bxc4+ {[%clk 0:00:28]} 49. Kxc4 {[%clk 0:00:35]}  Rhe8 {[%clk 0:00:28]} 50. Nc3 {[%clk 0:00:35]}  Bf8 {[%clk 0:00:28]} 51. Na4 {[%clk 0:00:33]}  Rd5 {[%clk 0:00:20]} 52. Nc5 {[%clk 0:00:32]}  Kc8 {[%clk 0:00:20]} 53. Kd3 {[%clk 0:00:25]}  Kc7 {[%clk 0:00:20]} 54. Rgg1 {[%clk 0:00:24]}  Rdd8 {[%clk 0:00:20]} 55. Rh2 {[%clk 0:00:23]}  Kc8 {[%clk 0:00:20]} 56. Kc4 {[%clk 0:00:24]}  Kc7 {[%clk 0:00:20]} 57. Re1 {[%clk 0:00:21]}  Kc8 {[%clk 0:00:20]} 58. Kd3 {[%clk 0:00:21]}  Kc7 {[%clk 0:00:21]} 59. f3 {[%clk 0:00:19]}  Bd6 {[%clk 0:00:19]} 60. Rhe2 {[%clk 0:00:17]}  Kc8 {[%clk 0:00:19]} 61. Kc4 {[%clk 0:00:08]}  Kc7 {[%clk 0:00:18]} 62. e4 {[%clk 0:00:08]}  fxe4 {[%clk 0:00:17]} 63. Nxe4 {[%clk 0:00:06]}  Bxf4 {[%clk 0:00:12]} 64. Nxf6 {[%clk 0:00:06]}  Rxe2 {[%clk 0:00:12]} 65. Rxe2 {[%clk 0:00:07]}  Bxh6 {[%clk 0:00:12]} 66. Re7+ {[%clk 0:00:07]}  Kc8 {[%clk 0:00:10]} 67. Ng4 {[%clk 0:00:01]}  Bc1 {[%clk 0:00:07]} 68. Rxh7 {[%clk 0:00:01]}  Bb2 {[%clk 0:00:07]} 69. Rh6 {[%clk 0:00:01]}  Rxd4+ {[%clk 0:00:05]} 70. Kb3 {[%clk 0:00:01]}  Bc1 {[%clk 0:00:05]} 0-1


[Site "https://www.chess.com"]

[Event "Titled Tuesday Blitz March 21 Early 2023"]
[White "Howell, David W L"]
[Black "Naroditsky, Daniel"]
[WhiteFideId "410608"]
[BlackFideId "2026961"]
[WhiteElo "2567"]
[BlackElo "2633"]
[Result "1/2-1/2"]
[Round "07"]
[TimeControl "180+2"]
[Date "2023.03.21"]
[WhiteClock "0:00:04"]
[BlackClock "0:00:09"]

1. d4 {[%clk 0:03:00]}  Nf6 {[%clk 0:02:58]} 2. c4 {[%clk 0:03:00]}  g6 {[%clk 0:02:58]} 3. Nc3 {[%clk 0:02:54]}  Bg7 {[%clk 0:02:59]} 4. g3 {[%clk 0:02:53]}  d6 {[%clk 0:02:59]} 5. Bg2 {[%clk 0:02:54]}  O-O {[%clk 0:03:00]} 6. Nf3 {[%clk 0:02:54]}  Nbd7 {[%clk 0:03:00]} 7. O-O {[%clk 0:02:54]}  e5 {[%clk 0:03:01]} 8. e4 {[%clk 0:02:55]}  exd4 {[%clk 0:02:56]} 9. Nxd4 {[%clk 0:02:56]}  Re8 {[%clk 0:02:57]} 10. Re1 {[%clk 0:02:53]}  Nc5 {[%clk 0:02:57]} 11. Nb3 {[%clk 0:02:52]}  Nfd7 {[%clk 0:02:49]} 12. Qc2 {[%clk 0:02:41]}  Ne5 {[%clk 0:02:41]} 13. Nxc5 {[%clk 0:02:03]}  dxc5 {[%clk 0:02:42]} 14. Rd1 {[%clk 0:02:04]}  Bd7 {[%clk 0:02:40]} 15. f4 {[%clk 0:01:46]}  Nc6 {[%clk 0:02:28]} 16. Be3 {[%clk 0:01:30]}  Nd4 {[%clk 0:01:54]} 17. Qf2 {[%clk 0:01:31]}  Qc8 {[%clk 0:01:54]} 18. Rd2 {[%clk 0:01:22]}  Be6 {[%clk 0:01:38]} 19. Qf1 {[%clk 0:01:09]}  c6 {[%clk 0:01:11]} 20. e5 {[%clk 0:01:00]}  Bf5 {[%clk 0:01:12]} 21. Bxd4 {[%clk 0:00:37]}  cxd4 {[%clk 0:01:13]} 22. Rxd4 {[%clk 0:00:38]}  f6 {[%clk 0:01:13]} 23. exf6 {[%clk 0:00:20]}  Bxf6 {[%clk 0:01:14]} 24. Rd2 {[%clk 0:00:20]}  Qc7 {[%clk 0:01:10]} 25. Qf2 {[%clk 0:00:14]}  Re7 {[%clk 0:00:56]} 26. Re1 {[%clk 0:00:12]}  Rae8 {[%clk 0:00:46]} 27. Rxe7 {[%clk 0:00:12]}  Rxe7 {[%clk 0:00:47]} 28. h4 {[%clk 0:00:12]}  Qa5 {[%clk 0:00:44]} 29. Re2 {[%clk 0:00:08]}  Rd7 {[%clk 0:00:37]} 30. Kh2 {[%clk 0:00:08]}  Bxc3 {[%clk 0:00:30]} 31. bxc3 {[%clk 0:00:09]}  Qxc3 {[%clk 0:00:30]} 32. Qxa7 {[%clk 0:00:09]}  Qxc4 {[%clk 0:00:29]} 33. Qb8+ {[%clk 0:00:08]}  Kg7 {[%clk 0:00:27]} 34. Qe5+ {[%clk 0:00:09]}  Kh6 {[%clk 0:00:24]} 35. Qe8 {[%clk 0:00:08]}  Qf7 {[%clk 0:00:22]} 36. Qe5 {[%clk 0:00:05]}  Qg7 {[%clk 0:00:18]} 37. Qe3 {[%clk 0:00:05]}  Qd4 {[%clk 0:00:16]} 38. Qe8 {[%clk 0:00:05]}  Kg7 {[%clk 0:00:10]} 39. Re7+ {[%clk 0:00:04]}  Rxe7 {[%clk 0:00:08]} 40. Qxe7+ {[%clk 0:00:05]}  Kh6 {[%clk 0:00:07]} 41. Qg5+ {[%clk 0:00:05]}  Kg7 {[%clk 0:00:08]} 42. Qe7+ {[%clk 0:00:06]}  Kh6 {[%clk 0:00:08]} 43. Qg5+ {[%clk 0:00:03]}  Kg7 {[%clk 0:00:09]} 44. Qe7+ {[%clk 0:00:04]} 1/2-1/2


[Site "https://www.chess.com"]

[Event "Titled Tuesday Blitz March 21 Early 2023"]
[White "Bortnyk, Olexandr"]
[Black "Dardha, Daniel"]
[WhiteFideId "14120828"]
[BlackFideId "240990"]
[WhiteElo "2734"]
[BlackElo "2581"]
[Result "1/2-1/2"]
[Round "07"]
[TimeControl "180+2"]
[Date "2023.03.21"]
[WhiteClock "0:00:02"]
[BlackClock "0:00:02"]

1. d4 {[%clk 0:02:53]}  d5 {[%clk 0:02:56]} 2. Nc3 {[%clk 0:02:51]}  e6 {[%clk 0:02:49]} 3. Bf4 {[%clk 0:02:51]}  Bd6 {[%clk 0:02:49]} 4. e3 {[%clk 0:02:51]}  Ne7 {[%clk 0:02:48]} 5. Nf3 {[%clk 0:02:49]}  O-O {[%clk 0:02:44]} 6. Bd3 {[%clk 0:02:49]}  h6 {[%clk 0:02:38]} 7. Ne5 {[%clk 0:02:30]}  f6 {[%clk 0:02:27]} 8. Ng6 {[%clk 0:02:28]}  Nxg6 {[%clk 0:02:23]} 9. Bxg6 {[%clk 0:02:29]}  c5 {[%clk 0:02:19]} 10. dxc5 {[%clk 0:02:19]}  Bxc5 {[%clk 0:02:13]} 11. Qh5 {[%clk 0:02:18]}  f5 {[%clk 0:02:01]} 12. O-O-O {[%clk 0:02:10]}  Nd7 {[%clk 0:02:00]} 13. f3 {[%clk 0:01:29]}  Qf6 {[%clk 0:01:30]} 14. g4 {[%clk 0:01:13]}  Ne5 {[%clk 0:01:16]} 15. gxf5 {[%clk 0:00:58]}  Nxg6 {[%clk 0:01:16]} 16. fxg6 {[%clk 0:00:53]}  Qf5 {[%clk 0:01:13]} 17. Qxf5 {[%clk 0:00:42]}  Rxf5 {[%clk 0:01:14]} 18. Ne2 {[%clk 0:00:26]}  e5 {[%clk 0:00:56]} 19. e4 {[%clk 0:00:16]}  Rxf4 {[%clk 0:00:42]} 20. Nxf4 {[%clk 0:00:16]}  Be3+ {[%clk 0:00:28]} 21. Kb1 {[%clk 0:00:17]}  exf4 {[%clk 0:00:18]} 22. Rxd5 {[%clk 0:00:18]}  Be6 {[%clk 0:00:18]} 23. Rd6 {[%clk 0:00:17]}  Bh3 {[%clk 0:00:13]} 24. Rhd1 {[%clk 0:00:15]}  Re8 {[%clk 0:00:12]} 25. e5 {[%clk 0:00:13]}  Kf8 {[%clk 0:00:10]} 26. Rd8 {[%clk 0:00:11]}  Bg2 {[%clk 0:00:09]} 27. R1d7 {[%clk 0:00:11]}  Rxd8 {[%clk 0:00:09]} 28. Rxd8+ {[%clk 0:00:12]}  Ke7 {[%clk 0:00:10]} 29. Rg8 {[%clk 0:00:12]}  Bxf3 {[%clk 0:00:10]} 30. Rxg7+ {[%clk 0:00:13]}  Ke6 {[%clk 0:00:08]} 31. Rg8 {[%clk 0:00:08]}  Kxe5 {[%clk 0:00:07]} 32. Rf8 {[%clk 0:00:06]}  Bd5 {[%clk 0:00:04]} 33. g7 {[%clk 0:00:07]}  Ke4 {[%clk 0:00:02]} 34. b3 {[%clk 0:00:03]}  f3 {[%clk 0:00:02]} 35. c4 {[%clk 0:00:04]}  Be6 {[%clk 0:00:01]} 36. Kc2 {[%clk 0:00:05]}  f2 {[%clk 0:00:01]} 37. Kd1 {[%clk 0:00:01]}  Kd3 {[%clk 0:00:01]} 38. Rd8+ {[%clk 0:00:01]}  Ke4 {[%clk 0:00:01]} 39. Rf8 {[%clk 0:00:02]}  Kd3 {[%clk 0:00:01]} 40. Rd8+ {[%clk 0:00:02]}  Ke4 {[%clk 0:00:02]} 41. Rf8 {[%clk 0:00:02]} 1/2-1/2


[Site "https://www.chess.com"]

[Event "Titled Tuesday Blitz March 21 Early 2023"]
[White "Chigaev, Maksim"]
[Black "Paravyan, David"]
[WhiteFideId "4108116"]
[BlackFideId "4194985"]
[WhiteElo "2547"]
[BlackElo "2577"]
[Result "0-1"]
[Round "07"]
[TimeControl "180+2"]
[Date "2023.03.21"]
[WhiteClock "0:00:01"]
[BlackClock "0:00:04"]

1. e4 {[%clk 0:03:00]}  e5 {[%clk 0:02:59]} 2. Nf3 {[%clk 0:03:00]}  Nf6 {[%clk 0:03:00]} 3. Nxe5 {[%clk 0:02:57]}  d6 {[%clk 0:03:00]} 4. Nf3 {[%clk 0:02:57]}  Nxe4 {[%clk 0:03:00]} 5. Nc3 {[%clk 0:02:56]}  Nxc3 {[%clk 0:02:59]} 6. dxc3 {[%clk 0:02:57]}  Be7 {[%clk 0:02:58]} 7. Be3 {[%clk 0:02:58]}  O-O {[%clk 0:02:58]} 8. Qd2 {[%clk 0:02:58]}  Nd7 {[%clk 0:02:59]} 9. O-O-O {[%clk 0:02:58]}  c6 {[%clk 0:02:58]} 10. h4 {[%clk 0:02:55]}  Re8 {[%clk 0:02:55]} 11. Bd3 {[%clk 0:02:49]}  d5 {[%clk 0:02:49]} 12. Bd4 {[%clk 0:02:38]}  Nc5 {[%clk 0:02:36]} 13. Bxc5 {[%clk 0:02:26]}  Bxc5 {[%clk 0:02:35]} 14. Ng5 {[%clk 0:02:27]}  h6 {[%clk 0:01:40]} 15. Qf4 {[%clk 0:01:41]}  Qf6 {[%clk 0:01:40]} 16. Qxf6 {[%clk 0:01:41]}  gxf6 {[%clk 0:01:41]} 17. Nh3 {[%clk 0:01:42]}  Bg4 {[%clk 0:01:20]} 18. f3 {[%clk 0:01:39]}  Bd7 {[%clk 0:01:20]} 19. Kb1 {[%clk 0:01:29]}  Be3 {[%clk 0:01:20]} 20. h5 {[%clk 0:01:09]}  Re5 {[%clk 0:01:11]} 21. g4 {[%clk 0:01:06]}  Rae8 {[%clk 0:01:06]} 22. c4 {[%clk 0:00:57]}  f5 {[%clk 0:00:54]} 23. f4 {[%clk 0:00:39]}  R5e7 {[%clk 0:00:41]} 24. gxf5 {[%clk 0:00:22]}  dxc4 {[%clk 0:00:31]} 25. f6 {[%clk 0:00:21]}  cxd3 {[%clk 0:00:31]} 26. fxe7 {[%clk 0:00:22]}  dxc2+ {[%clk 0:00:24]} 27. Kxc2 {[%clk 0:00:22]}  Bf5+ {[%clk 0:00:24]} 28. Kc3 {[%clk 0:00:21]}  Rxe7 {[%clk 0:00:25]} 29. Rh2 {[%clk 0:00:06]}  Re4 {[%clk 0:00:13]} 30. b3 {[%clk 0:00:03]}  c5 {[%clk 0:00:12]} 31. Rd8+ {[%clk 0:00:03]}  Kg7 {[%clk 0:00:13]} 32. Nf2 {[%clk 0:00:03]}  Bd4+ {[%clk 0:00:12]} 33. Kd2 {[%clk 0:00:03]}  Rxf4 {[%clk 0:00:08]} 34. Rg2+ {[%clk 0:00:04]}  Kf6 {[%clk 0:00:08]} 35. Nd3 {[%clk 0:00:04]}  Rf3 {[%clk 0:00:06]} 36. Ne1 {[%clk 0:00:03]}  Rh3 {[%clk 0:00:06]} 37. Nc2 {[%clk 0:00:03]}  Bc3+ {[%clk 0:00:05]} 38. Kc1 {[%clk 0:00:02]}  Rh1+ {[%clk 0:00:05]} 39. Rd1 {[%clk 0:00:02]}  Rxh5 {[%clk 0:00:04]} 40. Rf1 {[%clk 0:00:02]}  Ke7 {[%clk 0:00:04]} 41. Re2+ {[%clk 0:00:02]}  Be6 {[%clk 0:00:05]} 42. Ne3 {[%clk 0:00:02]}  Re5 {[%clk 0:00:04]} 43. Nd1 {[%clk 0:00:01]}  Rxe2 {[%clk 0:00:04]} 44. Nxc3 {[%clk 0:00:01]}  Rh2 {[%clk 0:00:04]} 0-1


[Site "https://www.chess.com"]

[Event "Titled Tuesday Blitz March 21 Early 2023"]
[White "Kravtsiv, Martyn"]
[Black "Pranav, V"]
[WhiteFideId "14113147"]
[BlackFideId "25060783"]
[WhiteElo "2695"]
[BlackElo "2500"]
[Result "0-1"]
[Round "07"]
[TimeControl "180+2"]
[Date "2023.03.21"]
[WhiteClock "0:00:03"]
[BlackClock "0:00:14"]

1. e4 {[%clk 0:03:00]}  e5 {[%clk 0:02:59]} 2. Nf3 {[%clk 0:03:00]}  Nc6 {[%clk 0:03:00]} 3. Nc3 {[%clk 0:02:59]}  Nf6 {[%clk 0:03:00]} 4. a4 {[%clk 0:02:59]}  Bb4 {[%clk 0:02:52]} 5. Bd3 {[%clk 0:02:58]}  d6 {[%clk 0:02:50]} 6. O-O {[%clk 0:02:57]}  O-O {[%clk 0:02:49]} 7. Nd5 {[%clk 0:02:56]}  Bc5 {[%clk 0:02:47]} 8. c3 {[%clk 0:02:56]}  a5 {[%clk 0:02:46]} 9. Bc2 {[%clk 0:02:55]}  h6 {[%clk 0:02:33]} 10. d4 {[%clk 0:02:50]}  exd4 {[%clk 0:02:33]} 11. cxd4 {[%clk 0:02:50]}  Ba7 {[%clk 0:02:34]} 12. Qd3 {[%clk 0:01:39]}  Re8 {[%clk 0:01:42]} 13. Nxf6+ {[%clk 0:01:38]}  Qxf6 {[%clk 0:01:43]} 14. e5 {[%clk 0:01:38]}  dxe5 {[%clk 0:01:43]} 15. Qh7+ {[%clk 0:01:37]}  Kf8 {[%clk 0:01:43]} 16. dxe5 {[%clk 0:01:36]}  Nxe5 {[%clk 0:01:43]} 17. Nxe5 {[%clk 0:01:35]}  Rxe5 {[%clk 0:01:43]} 18. Bd2 {[%clk 0:01:27]}  Bd4 {[%clk 0:01:28]} 19. Qh8+ {[%clk 0:01:03]}  Ke7 {[%clk 0:01:24]} 20. Rae1 {[%clk 0:01:02]}  g5 {[%clk 0:01:13]} 21. Qg8 {[%clk 0:00:50]}  Rxe1 {[%clk 0:00:47]} 22. Bxe1 {[%clk 0:00:49]}  Qg7 {[%clk 0:00:38]} 23. Bb4+ {[%clk 0:00:48]}  axb4 {[%clk 0:00:25]} 24. Re1+ {[%clk 0:00:49]}  Kd6 {[%clk 0:00:25]} 25. Qd8+ {[%clk 0:00:48]}  Kc6 {[%clk 0:00:25]} 26. Be4+ {[%clk 0:00:42]}  Kb6 {[%clk 0:00:25]} 27. a5+ {[%clk 0:00:40]}  Ka7 {[%clk 0:00:25]} 28. Qxc7 {[%clk 0:00:39]}  Qe5 {[%clk 0:00:22]} 29. Qxf7 {[%clk 0:00:33]}  Qf6 {[%clk 0:00:22]} 30. Qxf6 {[%clk 0:00:13]}  Bxf6 {[%clk 0:00:23]} 31. Rd1 {[%clk 0:00:12]}  Bxb2 {[%clk 0:00:22]} 32. h3 {[%clk 0:00:10]}  Bc3 {[%clk 0:00:21]} 33. Rd6 {[%clk 0:00:10]}  h5 {[%clk 0:00:19]} 34. Rb6 {[%clk 0:00:09]}  Rb8 {[%clk 0:00:17]} 35. Rd6 {[%clk 0:00:08]}  g4 {[%clk 0:00:17]} 36. h4 {[%clk 0:00:08]}  b3 {[%clk 0:00:16]} 37. Rd3 {[%clk 0:00:07]}  Bxa5 {[%clk 0:00:16]} 38. Rxb3 {[%clk 0:00:07]}  b5 {[%clk 0:00:16]} 39. Rd3 {[%clk 0:00:06]}  b4 {[%clk 0:00:14]} 40. Rd5 {[%clk 0:00:07]}  Bb6 {[%clk 0:00:14]} 41. Rxh5 {[%clk 0:00:06]}  g3 {[%clk 0:00:15]} 42. Rh7+ {[%clk 0:00:06]}  Bb7 {[%clk 0:00:15]} 43. h5 {[%clk 0:00:06]}  Bxf2+ {[%clk 0:00:14]} 44. Kf1 {[%clk 0:00:06]}  Kb6 {[%clk 0:00:14]} 45. Bxb7 {[%clk 0:00:04]}  Rxb7 {[%clk 0:00:14]} 46. Rh8 {[%clk 0:00:03]}  Re7 {[%clk 0:00:14]} 0-1


[Site "https://www.chess.com"]

[Event "Titled Tuesday Blitz March 21 Early 2023"]
[White "Gharibyan, Mamikon"]
[Black "Alekseenko, Kirill"]
[WhiteFideId "13308300"]
[BlackFideId "4135539"]
[WhiteElo "2445"]
[BlackElo "2683"]
[Result "1/2-1/2"]
[Round "07"]
[TimeControl "180+2"]
[Date "2023.03.21"]
[WhiteClock "0:00:12"]
[BlackClock "0:00:08"]

1. d4 {[%clk 0:03:00]}  d5 {[%clk 0:03:00]} 2. c4 {[%clk 0:02:55]}  dxc4 {[%clk 0:03:01]} 3. Nf3 {[%clk 0:02:54]}  a6 {[%clk 0:03:01]} 4. e3 {[%clk 0:02:49]}  Bg4 {[%clk 0:03:01]} 5. Bxc4 {[%clk 0:02:47]}  e6 {[%clk 0:03:01]} 6. h3 {[%clk 0:02:47]}  Bh5 {[%clk 0:03:01]} 7. Nbd2 {[%clk 0:02:45]}  Nc6 {[%clk 0:02:59]} 8. b3 {[%clk 0:02:44]}  Bd6 {[%clk 0:02:56]} 9. Bb2 {[%clk 0:02:43]}  Nf6 {[%clk 0:02:52]} 10. O-O {[%clk 0:02:43]}  O-O {[%clk 0:02:52]} 11. Be2 {[%clk 0:02:43]}  Nd5 {[%clk 0:02:51]} 12. Nc4 {[%clk 0:02:37]}  f5 {[%clk 0:02:51]} 13. Rc1 {[%clk 0:02:37]}  Nce7 {[%clk 0:02:47]} 14. Nfe5 {[%clk 0:02:24]}  Bxe2 {[%clk 0:02:47]} 15. Qxe2 {[%clk 0:02:25]}  Nf6 {[%clk 0:02:39]} 16. Nxd6 {[%clk 0:02:13]}  cxd6 {[%clk 0:02:38]} 17. Nc4 {[%clk 0:02:13]}  Ne4 {[%clk 0:02:36]} 18. Ba3 {[%clk 0:02:11]}  Nd5 {[%clk 0:02:28]} 19. Qe1 {[%clk 0:01:53]}  b5 {[%clk 0:02:25]} 20. Na5 {[%clk 0:01:51]}  Qg5 {[%clk 0:02:02]} 21. Rc2 {[%clk 0:01:16]}  Kh8 {[%clk 0:01:31]} 22. Bc1 {[%clk 0:01:11]}  Rf6 {[%clk 0:01:24]} 23. Kh2 {[%clk 0:00:57]}  Rg6 {[%clk 0:01:20]} 24. f3 {[%clk 0:00:56]}  Ng3 {[%clk 0:01:21]} 25. Rg1 {[%clk 0:00:50]}  Rf8 {[%clk 0:01:08]} 26. Nb7 {[%clk 0:00:44]}  e5 {[%clk 0:01:07]} 27. Rc6 {[%clk 0:00:38]}  exd4 {[%clk 0:00:35]} 28. exd4 {[%clk 0:00:27]}  f4 {[%clk 0:00:32]} 29. Rxd6 {[%clk 0:00:26]}  h5 {[%clk 0:00:27]} 30. Rxg6 {[%clk 0:00:23]}  Qxg6 {[%clk 0:00:27]} 31. Nc5 {[%clk 0:00:20]}  Re8 {[%clk 0:00:25]} 32. Qa5 {[%clk 0:00:14]}  Re2 {[%clk 0:00:24]} 33. Qd8+ {[%clk 0:00:11]}  Kh7 {[%clk 0:00:24]} 34. Qxd5 {[%clk 0:00:11]}  Nf1+ {[%clk 0:00:21]} 35. Kh1 {[%clk 0:00:11]}  Ng3+ {[%clk 0:00:20]} 36. Kh2 {[%clk 0:00:11]}  Nf1+ {[%clk 0:00:12]} 37. Kh1 {[%clk 0:00:11]}  Ng3+ {[%clk 0:00:08]} 38. Kh2 {[%clk 0:00:12]} 1/2-1/2


[Site "https://www.chess.com"]

[Event "Titled Tuesday Blitz March 21 Early 2023"]
[White "Tsydypov, Zhamsaran"]
[Black "Svane, Frederik"]
[WhiteFideId "4108566"]
[BlackFideId "12923044"]
[WhiteElo "2584"]
[BlackElo "2502"]
[Result "0-1"]
[Round "07"]
[TimeControl "180+2"]
[Date "2023.03.21"]
[WhiteClock "0:00:45"]
[BlackClock "0:00:21"]

1. e4 {[%clk 0:03:00]}  c5 {[%clk 0:03:00]} 2. Nf3 {[%clk 0:02:59]}  d6 {[%clk 0:03:00]} 3. d4 {[%clk 0:02:59]}  cxd4 {[%clk 0:03:01]} 4. Nxd4 {[%clk 0:03:00]}  Nf6 {[%clk 0:03:02]} 5. Nc3 {[%clk 0:03:00]}  Nc6 {[%clk 0:03:03]} 6. Bg5 {[%clk 0:02:58]}  e6 {[%clk 0:03:01]} 7. Qd2 {[%clk 0:02:58]}  a6 {[%clk 0:03:00]} 8. O-O-O {[%clk 0:02:57]}  Bd7 {[%clk 0:03:00]} 9. f4 {[%clk 0:02:57]}  Be7 {[%clk 0:02:59]} 10. Nf3 {[%clk 0:02:48]}  b5 {[%clk 0:02:59]} 11. e5 {[%clk 0:02:47]}  b4 {[%clk 0:02:59]} 12. exf6 {[%clk 0:02:43]}  bxc3 {[%clk 0:02:56]} 13. Qxc3 {[%clk 0:02:44]}  gxf6 {[%clk 0:02:57]} 14. Bh4 {[%clk 0:02:38]}  Rg8 {[%clk 0:02:57]} 15. Kb1 {[%clk 0:02:36]}  Rb8 {[%clk 0:02:57]} 16. Bxa6 {[%clk 0:02:31]}  d5 {[%clk 0:02:48]} 17. a3 {[%clk 0:02:10]}  Qb6 {[%clk 0:02:35]} 18. Bd3 {[%clk 0:02:04]}  d4 {[%clk 0:02:31]} 19. Qb3 {[%clk 0:02:04]}  Qa5 {[%clk 0:02:16]} 20. Be1 {[%clk 0:01:59]}  Rxb3 {[%clk 0:02:07]} 21. Bxa5 {[%clk 0:01:58]}  Rxd3 {[%clk 0:02:08]} 22. Rxd3 {[%clk 0:01:58]}  Nxa5 {[%clk 0:02:08]} 23. g3 {[%clk 0:01:56]}  Bc6 {[%clk 0:02:00]} 24. Re1 {[%clk 0:01:55]}  Bxf3 {[%clk 0:01:46]} 25. Rxf3 {[%clk 0:01:54]}  Nc6 {[%clk 0:01:43]} 26. b4 {[%clk 0:01:32]}  Kd7 {[%clk 0:01:41]} 27. Rd3 {[%clk 0:01:31]}  e5 {[%clk 0:01:34]} 28. c4 {[%clk 0:01:23]}  Kd6 {[%clk 0:01:15]} 29. Ka2 {[%clk 0:01:19]}  Rb8 {[%clk 0:01:14]} 30. g4 {[%clk 0:01:14]}  Rxb4 {[%clk 0:01:03]} 31. fxe5+ {[%clk 0:01:05]}  fxe5 {[%clk 0:01:02]} 32. Rxd4+ {[%clk 0:00:59]}  exd4 {[%clk 0:01:02]} 33. axb4 {[%clk 0:00:59]}  Nxb4+ {[%clk 0:01:03]} 34. Kb3 {[%clk 0:00:59]}  Nd3 {[%clk 0:01:00]} 35. Rf1 {[%clk 0:00:59]}  Ke6 {[%clk 0:00:53]} 36. h3 {[%clk 0:00:55]}  Nc5+ {[%clk 0:00:45]} 37. Kc2 {[%clk 0:00:52]}  d3+ {[%clk 0:00:39]} 38. Kd1 {[%clk 0:00:52]}  Ne4 {[%clk 0:00:26]} 39. Rf3 {[%clk 0:00:50]}  d2 {[%clk 0:00:24]} 40. Rf4 {[%clk 0:00:48]}  Nc3+ {[%clk 0:00:21]} 41. Kxd2 {[%clk 0:00:42]}  Bg5 {[%clk 0:00:21]} 42. Kxc3 {[%clk 0:00:42]}  Bxf4 {[%clk 0:00:22]} 43. Kd4 {[%clk 0:00:43]}  Kf6 {[%clk 0:00:20]} 44. Ke4 {[%clk 0:00:43]}  Kg5 {[%clk 0:00:20]} 45. c5 {[%clk 0:00:42]}  Bb8 {[%clk 0:00:19]} 46. Kf3 {[%clk 0:00:41]}  Kh4 {[%clk 0:00:19]} 47. Kg2 {[%clk 0:00:42]}  h6 {[%clk 0:00:19]} 48. c6 {[%clk 0:00:42]}  Bc7 {[%clk 0:00:19]} 49. Kf2 {[%clk 0:00:43]}  Kxh3 {[%clk 0:00:20]} 50. Kf3 {[%clk 0:00:44]}  Kh4 {[%clk 0:00:20]} 51. Ke4 {[%clk 0:00:44]}  Kxg4 {[%clk 0:00:21]} 52. Kd5 {[%clk 0:00:45]}  h5 {[%clk 0:00:21]} 0-1


[Site "https://www.chess.com"]